[Event "Early-Titled-Tuesday-Blitz-October-17-2023"]
[Site "Chess.com"]
[Date "2023.10.17"]
[Round "10"]
[White "tarno17"]
[Black "AnaKuchava"]
[Result "0-1"]
[WhiteElo "2115"]
[BlackElo "2242"]
[TimeControl "180+1"]
[EndTime "9:59:02 PDT"]
[Termination "AnaKuchava won by checkmate"]

1. e4 {[%clk 0:03:00.9]} 1... c5 {[%clk 0:02:58.8]} 2. Nf3 {[%clk 0:02:58.9]}
2... d6 {[%clk 0:02:58.4]} 3. Bb5+ {[%clk 0:02:58.6]} 3... Bd7 {[%clk
0:02:57.9]} 4. Bxd7+ {[%clk 0:02:58.1]} 4... Qxd7 {[%clk 0:02:58.8]} 5. O-O
{[%clk 0:02:58.6]} 5... Nc6 {[%clk 0:02:57.5]} 6. d4 {[%clk 0:02:55.7]} 6...
cxd4 {[%clk 0:02:56.3]} 7. Nxd4 {[%clk 0:02:56.6]} 7... Nf6 {[%clk 0:02:56.8]}
8. Re1 {[%clk 0:02:53.8]} 8... e6 {[%clk 0:02:49.6]} 9. c4 {[%clk 0:02:51]} 9...
Be7 {[%clk 0:02:48.8]} 10. Nc3 {[%clk 0:02:50.4]} 10... O-O {[%clk 0:02:47.1]}
11. b3 {[%clk 0:02:41.8]} 11... a6 {[%clk 0:02:45.9]} 12. Bb2 {[%clk 0:02:40.1]}
12... h6 {[%clk 0:02:40]} 13. Qd2 {[%clk 0:02:31.4]} 13... Qc7 {[%clk
0:02:26.4]} 14. Rad1 {[%clk 0:02:29.2]} 14... Rfd8 {[%clk 0:02:25.2]} 15. Re3
{[%clk 0:02:19.6]} 15... Nxd4 {[%clk 0:01:53.2]} 16. Qxd4 {[%clk 0:02:19.1]}
16... d5 {[%clk 0:01:53.7]} 17. exd5 {[%clk 0:02:07.5]} 17... Bc5 {[%clk
0:01:52.2]} 18. Qd3 {[%clk 0:01:57.9]} 18... Bxe3 {[%clk 0:01:50.8]} 19. Qxe3
{[%clk 0:01:54.8]} 19... exd5 {[%clk 0:01:47.9]} 20. Nxd5 {[%clk 0:01:51]} 20...
Nxd5 {[%clk 0:01:42.3]} 21. cxd5 {[%clk 0:01:51.6]} 21... Qc2 {[%clk 0:01:37.7]}
22. Qd4 {[%clk 0:01:45.9]} 22... f6 {[%clk 0:01:35.1]} 23. h3 {[%clk 0:01:33.8]}
23... Rac8 {[%clk 0:01:29.5]} 24. d6 {[%clk 0:01:28.4]} 24... Qf5 {[%clk
0:01:22.4]} 25. Ba3 {[%clk 0:01:22.1]} 25... Rd7 {[%clk 0:01:18.9]} 26. Rd3
{[%clk 0:01:07.8]} 26... Rc2 {[%clk 0:01:12.2]} 27. Rf3 {[%clk 0:01:06.2]} 27...
Qe5 {[%clk 0:01:02.7]} 28. Qg4 {[%clk 0:00:49.3]} 28... Rxa2 {[%clk 0:00:55]}
29. g3 {[%clk 0:00:29.2]} 29... Ra1+ {[%clk 0:00:48.3]} 30. Kg2 {[%clk 0:00:29]}
30... Qe1 {[%clk 0:00:44.5]} 31. Qc4+ {[%clk 0:00:18]} 31... Kh7 {[%clk
0:00:30.8]} 32. Qc2+ {[%clk 0:00:05.5]} 32... g6 {[%clk 0:00:30.5]} 33. Rxf6
{[%clk 0:00:01.8]} 33... Qh1# {[%clk 0:00:29.4]} 0-1

[Event "Early-Titled-Tuesday-Blitz-October-17-2023"]
[Site "Chess.com"]
[Date "2023.10.17"]
[Round "10"]
[White "GP9isback23"]
[Black "bazar-wokzal"]
[Result "1/2-1/2"]
[WhiteElo "2668"]
[BlackElo "2593"]
[TimeControl "180+1"]
[EndTime "9:59:05 PDT"]
[Termination "Game drawn by repetition"]

1. d4 {[%clk 0:02:59.1]} 1... Nf6 {[%clk 0:02:59.5]} 2. Nf3 {[%clk 0:02:59]}
2... e6 {[%clk 0:02:59.4]} 3. c4 {[%clk 0:02:58.7]} 3... Nc6 {[%clk 0:02:58.6]}
4. e3 {[%clk 0:02:56]} 4... Bb4+ {[%clk 0:02:58]} 5. Bd2 {[%clk 0:02:55.7]} 5...
a5 {[%clk 0:02:58.4]} 6. Be2 {[%clk 0:02:55.1]} 6... d6 {[%clk 0:02:58.3]} 7.
O-O {[%clk 0:02:55.1]} 7... e5 {[%clk 0:02:58.6]} 8. Nc3 {[%clk 0:02:47.7]} 8...
Bg4 {[%clk 0:02:55.4]} 9. d5 {[%clk 0:02:33.9]} 9... Ne7 {[%clk 0:02:54.7]} 10.
Ne1 {[%clk 0:02:22.9]} 10... Bxe2 {[%clk 0:02:45.3]} 11. Qxe2 {[%clk 0:02:20.7]}
11... O-O {[%clk 0:02:45.3]} 12. e4 {[%clk 0:02:13.3]} 12... Ng6 {[%clk
0:02:42.2]} 13. Nd3 {[%clk 0:02:12.4]} 13... Bxc3 {[%clk 0:02:39]} 14. Bxc3
{[%clk 0:02:09.3]} 14... c6 {[%clk 0:02:39.6]} 15. dxc6 {[%clk 0:01:49.5]} 15...
bxc6 {[%clk 0:02:39.4]} 16. Rfd1 {[%clk 0:01:50]} 16... Qe7 {[%clk 0:02:37.4]}
17. Rac1 {[%clk 0:01:49.1]} 17... c5 {[%clk 0:02:34.3]} 18. Bd2 {[%clk
0:01:35.4]} 18... Rfb8 {[%clk 0:02:28.5]} 19. Bg5 {[%clk 0:01:32.9]} 19... h6
{[%clk 0:02:28.2]} 20. Bd2 {[%clk 0:01:23.4]} 20... Nf8 {[%clk 0:02:24.4]} 21.
Bc3 {[%clk 0:01:19.8]} 21... Ne6 {[%clk 0:02:24]} 22. Ne1 {[%clk 0:01:14.1]}
22... a4 {[%clk 0:02:20.1]} 23. Nc2 {[%clk 0:01:08.8]} 23... Nd4 {[%clk
0:02:19.6]} 24. Qd3 {[%clk 0:01:09.1]} 24... Ra6 {[%clk 0:02:08]} 25. Ne3 {[%clk
0:01:06.2]} 25... Rab6 {[%clk 0:02:07.3]} 26. Rd2 {[%clk 0:01:05.7]} 26... Qb7
{[%clk 0:02:06]} 27. f3 {[%clk 0:01:04.6]} 27... Nh5 {[%clk 0:02:03.8]} 28. Nd5
{[%clk 0:01:02.4]} 28... Ra6 {[%clk 0:02:02.4]} 29. Rf1 {[%clk 0:00:57.3]} 29...
g6 {[%clk 0:01:57.3]} 30. f4 {[%clk 0:00:54.5]} 30... Nxf4 {[%clk 0:01:40.7]}
31. Nxf4 {[%clk 0:00:43.3]} 31... exf4 {[%clk 0:01:40.3]} 32. Bxd4 {[%clk
0:00:41.2]} 32... cxd4 {[%clk 0:01:40.4]} 33. Qxd4 {[%clk 0:00:38.9]} 33... Qb6
{[%clk 0:01:38.6]} 34. Qxb6 {[%clk 0:00:20.7]} 34... Raxb6 {[%clk 0:01:38.7]}
35. Rff2 {[%clk 0:00:21.3]} 35... g5 {[%clk 0:01:36.1]} 36. Kf1 {[%clk
0:00:20.4]} 36... Kg7 {[%clk 0:01:35.2]} 37. g3 {[%clk 0:00:20.3]} 37... fxg3
{[%clk 0:01:34.6]} 38. hxg3 {[%clk 0:00:21.2]} 38... Re8 {[%clk 0:01:32.5]} 39.
Rfe2 {[%clk 0:00:21.2]} 39... Rc6 {[%clk 0:01:29.8]} 40. b3 {[%clk 0:00:19.5]}
40... axb3 {[%clk 0:01:25.1]} 41. axb3 {[%clk 0:00:20.4]} 41... Rb8 {[%clk
0:01:24.4]} 42. Rd3 {[%clk 0:00:20.7]} 42... Rcb6 {[%clk 0:01:23.1]} 43. Ree3
{[%clk 0:00:20.5]} 43... Kg6 {[%clk 0:01:15]} 44. Kf2 {[%clk 0:00:20.9]} 44...
h5 {[%clk 0:01:11.5]} 45. Kf3 {[%clk 0:00:21]} 45... f5 {[%clk 0:01:08.9]} 46.
exf5+ {[%clk 0:00:21]} 46... Kxf5 {[%clk 0:01:09]} 47. Rd5+ {[%clk 0:00:21]}
47... Kf6 {[%clk 0:01:09.4]} 48. Red3 {[%clk 0:00:20]} 48... Rxb3 {[%clk
0:01:07.9]} 49. Rxd6+ {[%clk 0:00:20.5]} 49... Kf5 {[%clk 0:00:59.4]} 50. Rd5+
{[%clk 0:00:20.6]} 50... Kf6 {[%clk 0:00:59.3]} 51. Rd6+ {[%clk 0:00:19.9]}
51... Kf5 {[%clk 0:00:59.3]} 52. Rd5+ {[%clk 0:00:18.9]} 52... Kf6 {[%clk
0:00:59.2]} 53. Rd6+ {[%clk 0:00:19.4]} 1/2-1/2

[Event "Early-Titled-Tuesday-Blitz-October-17-2023"]
[Site "Chess.com"]
[Date "2023.10.17"]
[Round "10"]
[White "lamomiajunior"]
[Black "Semetey"]
[Result "1-0"]
[WhiteElo "2724"]
[BlackElo "2542"]
[TimeControl "180+1"]
[EndTime "9:59:05 PDT"]
[Termination "lamomiajunior won on time"]

1. d4 {[%clk 0:02:57.9]} 1... a6 {[%clk 0:03:00.9]} 2. e4 {[%clk 0:02:57.7]}
2... b5 {[%clk 0:03:00.9]} 3. Bd3 {[%clk 0:02:55.1]} 3... Bb7 {[%clk 0:03:01]}
4. Nf3 {[%clk 0:02:55.1]} 4... e6 {[%clk 0:03:01.2]} 5. O-O {[%clk 0:02:55.4]}
5... c5 {[%clk 0:03:01.1]} 6. c3 {[%clk 0:02:52.3]} 6... cxd4 {[%clk 0:03:01]}
7. cxd4 {[%clk 0:02:53.2]} 7... Nf6 {[%clk 0:03:01.2]} 8. Re1 {[%clk 0:02:52.9]}
8... Be7 {[%clk 0:03:01.3]} 9. a3 {[%clk 0:02:52.1]} 9... O-O {[%clk 0:03:00.5]}
10. Nc3 {[%clk 0:02:52.8]} 10... d6 {[%clk 0:03:00.5]} 11. h3 {[%clk 0:02:49]}
11... Nc6 {[%clk 0:03:00.4]} 12. Be3 {[%clk 0:02:49.1]} 12... Rc8 {[%clk
0:02:59.3]} 13. Qd2 {[%clk 0:02:48.8]} 13... e5 {[%clk 0:02:56]} 14. d5 {[%clk
0:02:48.4]} 14... Nb8 {[%clk 0:02:55.4]} 15. b4 {[%clk 0:02:43.8]} 15... Nbd7
{[%clk 0:02:55]} 16. a4 {[%clk 0:02:44]} 16... bxa4 {[%clk 0:02:53.6]} 17. Nxa4
{[%clk 0:02:43.9]} 17... Nh5 {[%clk 0:02:49.8]} 18. Bf1 {[%clk 0:02:34.6]} 18...
h6 {[%clk 0:02:46.9]} 19. Rec1 {[%clk 0:02:29.2]} 19... Rxc1 {[%clk 0:02:43.6]}
20. Rxc1 {[%clk 0:02:29]} 20... f5 {[%clk 0:02:43.9]} 21. exf5 {[%clk
0:02:28.6]} 21... Rxf5 {[%clk 0:02:44.8]} 22. Bd3 {[%clk 0:02:14.6]} 22... Rxf3
{[%clk 0:02:26.2]} 23. gxf3 {[%clk 0:02:14.7]} 23... Nf4 {[%clk 0:02:26.8]} 24.
Bxf4 {[%clk 0:02:12.5]} 24... exf4 {[%clk 0:02:27.7]} 25. Re1 {[%clk 0:02:03.9]}
25... Ne5 {[%clk 0:02:27.3]} 26. Be4 {[%clk 0:01:57.7]} 26... Bc8 {[%clk
0:02:27]} 27. Qxf4 {[%clk 0:01:54.6]} 27... Bxh3 {[%clk 0:02:25.6]} 28. Nc5
{[%clk 0:01:33]} 28... dxc5 {[%clk 0:00:57.3]} 29. Qxe5 {[%clk 0:01:32.1]} 29...
Bd6 {[%clk 0:00:57.2]} 30. Qh5 {[%clk 0:01:32.7]} 30... Bd7 {[%clk 0:00:48.1]}
31. bxc5 {[%clk 0:01:31.7]} 31... Bxc5 {[%clk 0:00:47.3]} 32. d6 {[%clk
0:01:10]} 32... Bb4 {[%clk 0:00:14.3]} 33. Bd5+ {[%clk 0:01:08.2]} 33... Kh8
{[%clk 0:00:14.4]} 34. Rd1 {[%clk 0:00:56.4]} 34... Bxd6 {[%clk 0:00:14.2]} 35.
Bf7 {[%clk 0:00:52.4]} 35... Ba4 {[%clk 0:00:13.4]} 36. Rd4 {[%clk 0:00:42.4]}
36... Bh2+ {[%clk 0:00:12.8]} 37. Qxh2 {[%clk 0:00:43.2]} 37... Qxd4 {[%clk
0:00:11.7]} 38. Qb8+ {[%clk 0:00:44]} 1-0

[Event "Early-Titled-Tuesday-Blitz-October-17-2023"]
[Site "Chess.com"]
[Date "2023.10.17"]
[Round "10"]
[White "ploxoi"]
[Black "garicradomir"]
[Result "0-1"]
[WhiteElo "2449"]
[BlackElo "2335"]
[TimeControl "180+1"]
[EndTime "9:59:06 PDT"]
[Termination "garicradomir won by checkmate"]

1. d4 {[%clk 0:03:00.9]} 1... Nf6 {[%clk 0:02:59.6]} 2. c4 {[%clk 0:03:00.6]}
2... Nc6 {[%clk 0:03:00.1]} 3. Nf3 {[%clk 0:03:00.2]} 3... e6 {[%clk 0:03:00.1]}
4. g3 {[%clk 0:02:44.8]} 4... g6 {[%clk 0:02:59.6]} 5. Bg2 {[%clk 0:02:44.8]}
5... Bg7 {[%clk 0:03:00.3]} 6. O-O {[%clk 0:02:45.2]} 6... O-O {[%clk
0:03:00.7]} 7. Nc3 {[%clk 0:02:45.8]} 7... d6 {[%clk 0:03:01.2]} 8. e4 {[%clk
0:02:45.9]} 8... e5 {[%clk 0:03:00.3]} 9. d5 {[%clk 0:02:45.6]} 9... Ne7 {[%clk
0:02:59.1]} 10. Ne1 {[%clk 0:02:45.3]} 10... a5 {[%clk 0:02:59.6]} 11. Nd3
{[%clk 0:02:45.4]} 11... Nd7 {[%clk 0:02:59.3]} 12. Qe2 {[%clk 0:02:16.4]} 12...
b6 {[%clk 0:02:58.9]} 13. Bg5 {[%clk 0:02:03.3]} 13... Nc5 {[%clk 0:02:55.2]}
14. Rae1 {[%clk 0:01:52.1]} 14... h6 {[%clk 0:02:53.5]} 15. Bd2 {[%clk
0:01:45.3]} 15... Ba6 {[%clk 0:02:51.2]} 16. b3 {[%clk 0:01:45.2]} 16... c6
{[%clk 0:02:42.5]} 17. f4 {[%clk 0:01:17.6]} 17... cxd5 {[%clk 0:02:40.4]} 18.
exd5 {[%clk 0:01:16.4]} 18... Nxd3 {[%clk 0:02:16.1]} 19. Qxd3 {[%clk
0:01:15.4]} 19... exf4 {[%clk 0:02:14.3]} 20. Bxf4 {[%clk 0:01:14]} 20... Nf5
{[%clk 0:02:14.1]} 21. Kh1 {[%clk 0:00:48]} 21... Rc8 {[%clk 0:02:00.3]} 22. Bh3
{[%clk 0:00:37.5]} 22... Nd4 {[%clk 0:01:53.5]} 23. Bxc8 {[%clk 0:00:36]} 23...
Bxc8 {[%clk 0:01:54.4]} 24. Be3 {[%clk 0:00:20.2]} 24... Nf5 {[%clk 0:01:41]}
25. Bg1 {[%clk 0:00:19.3]} 25... h5 {[%clk 0:01:35.1]} 26. Na4 {[%clk
0:00:19.4]} 26... Bd7 {[%clk 0:01:31.4]} 27. Nxb6 {[%clk 0:00:18.4]} 27... a4
{[%clk 0:01:23.7]} 28. b4 {[%clk 0:00:17]} 28... Bc8 {[%clk 0:01:16.4]} 29. c5
{[%clk 0:00:17.5]} 29... dxc5 {[%clk 0:01:08.3]} 30. bxc5 {[%clk 0:00:18.4]}
30... Bb7 {[%clk 0:01:09.2]} 31. c6 {[%clk 0:00:17.9]} 31... Bxc6 {[%clk
0:01:08.9]} 32. Rxf5 {[%clk 0:00:15.8]} 32... gxf5 {[%clk 0:01:07.6]} 33. Qxf5
{[%clk 0:00:16.7]} 33... Bb7 {[%clk 0:00:56.6]} 34. Qxh5 {[%clk 0:00:07.8]}
34... Re8 {[%clk 0:00:56.8]} 35. Qd1 {[%clk 0:00:06.4]} 35... Rxe1 {[%clk
0:00:55.1]} 36. Qxe1 {[%clk 0:00:07.3]} 36... Qxd5+ {[%clk 0:00:43.1]} 37. Nxd5
{[%clk 0:00:06.8]} 37... Bxd5+ {[%clk 0:00:42.4]} 38. Qe4 {[%clk 0:00:07.7]}
38... Bxe4# {[%clk 0:00:33.8]} 0-1

[Event "Early-Titled-Tuesday-Blitz-October-17-2023"]
[Site "Chess.com"]
[Date "2023.10.17"]
[Round "10"]
[White "kingofthenil"]
[Black "whitemirrorninja"]
[Result "0-1"]
[WhiteElo "2720"]
[BlackElo "2561"]
[TimeControl "180+1"]
[EndTime "9:59:07 PDT"]
[Termination "whitemirrorninja won on time"]

1. e4 {[%clk 0:02:18.9]} 1... c6 {[%clk 0:02:59.1]} 2. c4 {[%clk 0:02:17.7]}
2... g6 {[%clk 0:02:58.5]} 3. d4 {[%clk 0:02:16]} 3... Bg7 {[%clk 0:02:58.6]} 4.
Nc3 {[%clk 0:02:12]} 4... d6 {[%clk 0:02:58.8]} 5. Nf3 {[%clk 0:02:09.2]} 5...
e5 {[%clk 0:02:58.5]} 6. Be2 {[%clk 0:02:10.1]} 6... Ne7 {[%clk 0:02:53]} 7. O-O
{[%clk 0:02:09.9]} 7... O-O {[%clk 0:02:53.2]} 8. Be3 {[%clk 0:02:08.2]} 8...
Nd7 {[%clk 0:02:52]} 9. Qc2 {[%clk 0:02:02]} 9... f5 {[%clk 0:02:45.7]} 10. dxe5
{[%clk 0:01:52.1]} 10... f4 {[%clk 0:02:27.3]} 11. Bd2 {[%clk 0:01:46.2]} 11...
Nxe5 {[%clk 0:02:26.4]} 12. Rfd1 {[%clk 0:01:41.1]} 12... c5 {[%clk 0:02:15.8]}
13. Be1 {[%clk 0:01:27.1]} 13... N7c6 {[%clk 0:02:13.7]} 14. Nb5 {[%clk
0:01:27.3]} 14... a6 {[%clk 0:02:08.9]} 15. Rxd6 {[%clk 0:01:23.4]} 15... Nxf3+
{[%clk 0:02:09.4]} 16. Bxf3 {[%clk 0:01:23.2]} 16... Qe7 {[%clk 0:02:09.7]} 17.
Rxc6 {[%clk 0:01:18.5]} 17... axb5 {[%clk 0:01:55.8]} 18. Rb6 {[%clk 0:01:10.4]}
18... b4 {[%clk 0:01:56.1]} 19. e5 {[%clk 0:01:02]} 19... Bxe5 {[%clk
0:01:46.9]} 20. a3 {[%clk 0:01:01.8]} 20... Qc7 {[%clk 0:01:36]} 21. Rb5 {[%clk
0:01:01.3]} 21... Ra6 {[%clk 0:01:21.2]} 22. Rb1 {[%clk 0:00:53.9]} 22... bxa3
{[%clk 0:00:56.1]} 23. bxa3 {[%clk 0:00:54.8]} 23... b6 {[%clk 0:00:56.5]} 24.
Qb3 {[%clk 0:00:37.2]} 24... Rf6 {[%clk 0:00:53.9]} 25. h4 {[%clk 0:00:34]}
25... Bd7 {[%clk 0:00:52.2]} 26. Rd1 {[%clk 0:00:30.9]} 26... Kg7 {[%clk
0:00:51.7]} 27. h5 {[%clk 0:00:26.5]} 27... gxh5 {[%clk 0:00:47.8]} 28. Rd5
{[%clk 0:00:22.1]} 28... Bxb5 {[%clk 0:00:46.2]} 29. Qxb5 {[%clk 0:00:22.3]}
29... Ra7 {[%clk 0:00:44.8]} 30. a4 {[%clk 0:00:18.8]} 30... Qe7 {[%clk
0:00:40.1]} 31. a5 {[%clk 0:00:18.4]} 31... Bd4 {[%clk 0:00:37.2]} 32. Bd2
{[%clk 0:00:14.7]} 32... bxa5 {[%clk 0:00:34.7]} 33. Bxa5 {[%clk 0:00:04.1]}
33... Rg6 {[%clk 0:00:30.2]} 34. Bd2 {[%clk 0:00:01.2]} 34... Ra1+ {[%clk
0:00:27.9]} 0-1

[Event "Early-Titled-Tuesday-Blitz-October-17-2023"]
[Site "Chess.com"]
[Date "2023.10.17"]
[Round "10"]
[White "Iskusnyh"]
[Black "HouseOfDurin"]
[Result "1-0"]
[WhiteElo "2574"]
[BlackElo "2271"]
[TimeControl "180+1"]
[EndTime "9:59:14 PDT"]
[Termination "Iskusnyh won by resignation"]

1. d4 {[%clk 0:03:00.9]} 1... Nf6 {[%clk 0:02:59.7]} 2. c4 {[%clk 0:03:00.5]}
2... c5 {[%clk 0:03:00.4]} 3. d5 {[%clk 0:03:00.2]} 3... b5 {[%clk 0:03:01]} 4.
cxb5 {[%clk 0:03:00]} 4... a6 {[%clk 0:03:01.6]} 5. e3 {[%clk 0:02:58.4]} 5...
axb5 {[%clk 0:03:01.3]} 6. Bxb5 {[%clk 0:02:56.2]} 6... Bb7 {[%clk 0:03:01.3]}
7. Nc3 {[%clk 0:02:51.7]} 7... Qa5 {[%clk 0:03:00.9]} 8. Bd2 {[%clk 0:02:49.3]}
8... e6 {[%clk 0:02:58.7]} 9. e4 {[%clk 0:02:31.4]} 9... Nxe4 {[%clk 0:02:57.4]}
10. a4 {[%clk 0:02:17]} 10... Nxd2 {[%clk 0:02:32]} 11. Qxd2 {[%clk 0:02:16.1]}
11... Be7 {[%clk 0:02:31.6]} 12. Nf3 {[%clk 0:01:58.8]} 12... Bxd5 {[%clk
0:02:25]} 13. Nxd5 {[%clk 0:01:48.7]} 13... Qxd2+ {[%clk 0:02:25.9]} 14. Kxd2
{[%clk 0:01:48.7]} 14... exd5 {[%clk 0:02:26.4]} 15. Rhe1 {[%clk 0:01:48.7]}
15... Kf8 {[%clk 0:02:19.2]} 16. Re5 {[%clk 0:01:39.3]} 16... d6 {[%clk
0:01:14.7]} 17. Rxd5 {[%clk 0:01:38.2]} 17... Na6 {[%clk 0:01:15]} 18. Bxa6
{[%clk 0:01:08.7]} 18... Rxa6 {[%clk 0:01:15.9]} 19. Kd3 {[%clk 0:01:08.8]}
19... f6 {[%clk 0:01:11]} 20. Nd2 {[%clk 0:01:07.8]} 20... Kf7 {[%clk
0:01:09.8]} 21. Nc4 {[%clk 0:01:07.8]} 21... Rb8 {[%clk 0:01:04.6]} 22. Kc2
{[%clk 0:01:01.9]} 22... Rb4 {[%clk 0:00:50.9]} 23. b3 {[%clk 0:01:00.9]} 23...
g6 {[%clk 0:00:31.6]} 24. g4 {[%clk 0:00:58.7]} 24... Ke6 {[%clk 0:00:30.5]} 25.
Rd3 {[%clk 0:00:55.2]} 25... Kd7 {[%clk 0:00:15.3]} 26. Rad1 {[%clk 0:00:44.5]}
26... Raxa4 {[%clk 0:00:14.4]} 27. bxa4 {[%clk 0:00:32.7]} 27... Rxc4+ {[%clk
0:00:14.1]} 28. Kb3 {[%clk 0:00:32.9]} 28... Rxg4 {[%clk 0:00:11.3]} 29. Rh3
{[%clk 0:00:28.9]} 29... h5 {[%clk 0:00:10.4]} 30. Ra1 {[%clk 0:00:27.2]} 30...
Rb4+ {[%clk 0:00:09.2]} 31. Kc2 {[%clk 0:00:27.3]} 31... Bd8 {[%clk 0:00:08.5]}
32. a5 {[%clk 0:00:26.5]} 32... Kc6 {[%clk 0:00:07.6]} 33. a6 {[%clk 0:00:26.4]}
33... Rb8 {[%clk 0:00:07.2]} 34. Rb3 {[%clk 0:00:25.3]} 34... Ra8 {[%clk
0:00:06.1]} 35. a7 {[%clk 0:00:25.7]} 35... Bb6 {[%clk 0:00:06]} 36. Ra6 {[%clk
0:00:25.7]} 36... Rxa7 {[%clk 0:00:04.8]} 37. Rbxb6+ {[%clk 0:00:25.2]} 37...
Kd5 {[%clk 0:00:05.3]} 1-0

[Event "Early-Titled-Tuesday-Blitz-October-17-2023"]
[Site "Chess.com"]
[Date "2023.10.17"]
[Round "10"]
[White "Martial2008"]
[Black "Nuvas"]
[Result "1-0"]
[WhiteElo "2652"]
[BlackElo "2807"]
[TimeControl "180+1"]
[EndTime "9:59:16 PDT"]
[Termination "Martial2008 won on time"]

1. d4 {[%clk 0:03:00.9]} 1... Nf6 {[%clk 0:02:59.9]} 2. Nf3 {[%clk 0:03:00.6]}
2... d5 {[%clk 0:03:00.2]} 3. Bf4 {[%clk 0:03:00.2]} 3... c5 {[%clk 0:03:00.5]}
4. e3 {[%clk 0:03:00.2]} 4... Nc6 {[%clk 0:03:00.6]} 5. Nbd2 {[%clk 0:03:00.1]}
5... cxd4 {[%clk 0:02:58.6]} 6. exd4 {[%clk 0:02:59.6]} 6... Nh5 {[%clk
0:02:58]} 7. Be3 {[%clk 0:02:55.6]} 7... g6 {[%clk 0:02:55.9]} 8. c3 {[%clk
0:02:52.6]} 8... Qc7 {[%clk 0:02:55.3]} 9. Bd3 {[%clk 0:02:51.5]} 9... Nf4
{[%clk 0:02:55.3]} 10. Bxf4 {[%clk 0:02:51.6]} 10... Qxf4 {[%clk 0:02:55.2]} 11.
O-O {[%clk 0:02:52]} 11... Bg7 {[%clk 0:02:55.3]} 12. Re1 {[%clk 0:02:51.8]}
12... O-O {[%clk 0:02:55.2]} 13. Qe2 {[%clk 0:02:51.1]} 13... Qd6 {[%clk
0:02:43.6]} 14. Nb3 {[%clk 0:02:48.8]} 14... b6 {[%clk 0:02:23.7]} 15. Rad1
{[%clk 0:02:39.8]} 15... a6 {[%clk 0:02:08.2]} 16. a3 {[%clk 0:02:39]} 16... a5
{[%clk 0:02:02.7]} 17. Bb5 {[%clk 0:02:37]} 17... e6 {[%clk 0:02:02.5]} 18. Nc1
{[%clk 0:02:37]} 18... a4 {[%clk 0:01:55.4]} 19. Nd3 {[%clk 0:02:35.6]} 19...
Ra5 {[%clk 0:01:49.3]} 20. Nde5 {[%clk 0:02:22.1]} 20... Ne7 {[%clk 0:01:44.3]}
21. Bd3 {[%clk 0:02:20.2]} 21... f6 {[%clk 0:01:30.3]} 22. Ng4 {[%clk
0:02:19.2]} 22... Qc6 {[%clk 0:01:14.7]} 23. Ne3 {[%clk 0:02:10.4]} 23... b5
{[%clk 0:01:13.7]} 24. Nc2 {[%clk 0:02:10.2]} 24... Bd7 {[%clk 0:01:10.7]} 25.
h4 {[%clk 0:02:10.2]} 25... h5 {[%clk 0:01:03.7]} 26. g3 {[%clk 0:02:07.6]}
26... Raa8 {[%clk 0:00:56.8]} 27. Nb4 {[%clk 0:02:05.3]} 27... Qb6 {[%clk
0:00:53.9]} 28. Bb1 {[%clk 0:02:04.5]} 28... Nf5 {[%clk 0:00:42.1]} 29. Nd3
{[%clk 0:02:01.2]} 29... Rae8 {[%clk 0:00:40.3]} 30. Nf4 {[%clk 0:01:59.7]}
30... Kf7 {[%clk 0:00:34.6]} 31. Qd2 {[%clk 0:01:57.2]} 31... Bh6 {[%clk
0:00:32.5]} 32. Bxf5 {[%clk 0:01:46.5]} 32... gxf5 {[%clk 0:00:24.4]} 33. Nxd5
{[%clk 0:01:46.5]} 33... Bxd2 {[%clk 0:00:22.1]} 34. Nxb6 {[%clk 0:01:46.6]}
34... Bxe1 {[%clk 0:00:19.3]} 35. Nxd7 {[%clk 0:01:46.1]} 35... Bxc3 {[%clk
0:00:17.7]} 36. bxc3 {[%clk 0:01:43.6]} 36... Rg8 {[%clk 0:00:18.1]} 37. Rb1
{[%clk 0:01:41.4]} 37... Rc8 {[%clk 0:00:16.5]} 38. Nc5 {[%clk 0:01:41.6]} 38...
Rb8 {[%clk 0:00:16.6]} 39. Kf1 {[%clk 0:01:35.6]} 39... Rgc8 {[%clk 0:00:16.7]}
40. Ke2 {[%clk 0:01:34.2]} 40... e5 {[%clk 0:00:17.2]} 41. Nd2 {[%clk
0:01:34.5]} 41... Rd8 {[%clk 0:00:16.5]} 42. Rb4 {[%clk 0:01:34.3]} 42... Ke7
{[%clk 0:00:13.6]} 43. Nf1 {[%clk 0:01:34.3]} 43... Kd6 {[%clk 0:00:12.1]} 44.
Ne3 {[%clk 0:01:34.3]} 44... f4 {[%clk 0:00:11.3]} 45. gxf4 {[%clk 0:01:33.4]}
45... exf4 {[%clk 0:00:12.2]} 46. Nf5+ {[%clk 0:01:33.9]} 46... Kc6 {[%clk
0:00:12.4]} 47. Kf3 {[%clk 0:01:33.8]} 47... Re8 {[%clk 0:00:11]} 48. Kxf4
{[%clk 0:01:32.7]} 48... Re1 {[%clk 0:00:11.6]} 49. Ne4 {[%clk 0:01:11.4]} 49...
Rc1 {[%clk 0:00:08]} 50. Ne3 {[%clk 0:01:09.8]} 50... Rg8 {[%clk 0:00:07.9]} 51.
d5+ {[%clk 0:01:08.8]} 51... Kb6 {[%clk 0:00:08.5]} 52. c4 {[%clk 0:01:09.4]}
52... f5 {[%clk 0:00:05.1]} 53. Rxb5+ {[%clk 0:01:09.2]} 53... Ka6 {[%clk
0:00:05.7]} 54. Nc5+ {[%clk 0:01:06.9]} 54... Ka7 {[%clk 0:00:05.6]} 55. d6
{[%clk 0:01:06.5]} 1-0

[Event "Early-Titled-Tuesday-Blitz-October-17-2023"]
[Site "Chess.com"]
[Date "2023.10.17"]
[Round "10"]
[White "NM_Antelacus"]
[Black "Deadmold"]
[Result "1-0"]
[WhiteElo "2098"]
[BlackElo "2190"]
[TimeControl "180+1"]
[EndTime "9:59:18 PDT"]
[Termination "NM_Antelacus won on time"]

1. e4 {[%clk 0:03:00.9]} 1... Nf6 {[%clk 0:02:59.5]} 2. e5 {[%clk 0:03:00.3]}
2... Nd5 {[%clk 0:02:59.4]} 3. d4 {[%clk 0:03:00.8]} 3... d6 {[%clk 0:02:59.4]}
4. Nf3 {[%clk 0:03:00.6]} 4... g6 {[%clk 0:02:59.1]} 5. h3 {[%clk 0:02:59.2]}
5... Bg7 {[%clk 0:02:58.6]} 6. c3 {[%clk 0:02:59.3]} 6... O-O {[%clk 0:02:57.7]}
7. Bd3 {[%clk 0:02:58.9]} 7... Nc6 {[%clk 0:02:57.5]} 8. exd6 {[%clk 0:02:56.5]}
8... cxd6 {[%clk 0:02:57.7]} 9. O-O {[%clk 0:02:54.2]} 9... e5 {[%clk
0:02:55.9]} 10. dxe5 {[%clk 0:02:52.6]} 10... dxe5 {[%clk 0:02:56.2]} 11. Bc4
{[%clk 0:02:49.5]} 11... Nb6 {[%clk 0:02:52.4]} 12. Bb3 {[%clk 0:02:44.6]} 12...
h6 {[%clk 0:02:45.6]} 13. Nbd2 {[%clk 0:02:37.2]} 13... Kh7 {[%clk 0:02:42]} 14.
Ne4 {[%clk 0:02:34.8]} 14... f5 {[%clk 0:01:35.2]} 15. Nd6 {[%clk 0:02:29]}
15... e4 {[%clk 0:01:27.5]} 16. Nh2 {[%clk 0:02:26.6]} 16... Qe7 {[%clk
0:01:22.9]} 17. Be3 {[%clk 0:02:09.5]} 17... Be6 {[%clk 0:01:16.9]} 18. Bc5
{[%clk 0:02:06.5]} 18... Rfd8 {[%clk 0:01:05.2]} 19. Ba3 {[%clk 0:01:11]} 19...
Bxb3 {[%clk 0:00:57.1]} 20. axb3 {[%clk 0:01:10]} 20... Be5 {[%clk 0:00:43.1]}
21. Nxf5 {[%clk 0:00:46.9]} 21... gxf5 {[%clk 0:00:16.6]} 22. Bxe7 {[%clk
0:00:44.4]} 22... Rxd1 {[%clk 0:00:16.3]} 23. Rfxd1 {[%clk 0:00:40.5]} 23...
Nxe7 {[%clk 0:00:16.6]} 24. Nf1 {[%clk 0:00:34.5]} 24... Kg6 {[%clk 0:00:16.3]}
25. Ne3 {[%clk 0:00:34.2]} 25... Kf6 {[%clk 0:00:14.9]} 26. Nc4 {[%clk 0:00:31]}
26... Ke6 {[%clk 0:00:10.3]} 27. Nxb6 {[%clk 0:00:30.3]} 27... Rg8 {[%clk
0:00:05.3]} 28. Rxa7 {[%clk 0:00:27.1]} 28... Ng6 {[%clk 0:00:03.9]} 29. Nd5
{[%clk 0:00:21.2]} 29... Nh4 {[%clk 0:00:03]} 30. g3 {[%clk 0:00:19]} 30... f4
{[%clk 0:00:02.3]} 31. g4 {[%clk 0:00:17]} 31... h5 {[%clk 0:00:02.1]} 32. Rxb7
{[%clk 0:00:12.2]} 32... hxg4 {[%clk 0:00:02.2]} 33. Rb6+ {[%clk 0:00:12.4]} 1-0